{"text_format":"3","workbook":"xlsx","n_sheets":6,"sheets":["Sākums","Informācijas panelis","Izdevumi un ienākumi","Budžeta Pārskats","Datu saraksti","Kategorija PivotTable"],"not_rendered":{"charts":3,"defined_names":26,"pivot_tables":2},"read":"whole","date_system":"1900"}

{"sheet":"Sākums","index":0,"n_rows":8,"n_cols":2,"rows_kept":8}
[null,"Par veidni"]
[null,"Izmantojiet šo veidni, lai izveidotu pusmēneša ģimenes budžetu."]
[null,"Informācijas paneļa darblapā ir ikmēneša un gada kopsummas diagrammas un tabula iknedēļas ienākumiem un izdevumiem."]
[null,"Ievadiet kategorijas darblapā Datu saraksti un vērtības darblapā Ienākumi un Izdevumi."]
[null,"Atsvaidziniet rakurstabulu darblapā Budžeta pārskats."]
[null,"Piezīme."]
[null,"Papildu norādījumi ir sniegti visu darblapu kolonnā A. Šis teksts ir paslēpts ar nolūku. Lai tekstu noņemtu, atlasiet kolonnu A, pēc tam atlasiet DZĒST. "]
[null,"Lai iegūtu papildinformāciju par tabulu, tabulā nospiediet taustiņu SHIFT un pēc tam F10, atlasiet opciju TABULA un pēc tam atlasiet ALTERNATĪVAIS TEKSTS. Attiecībā uz rakurstabulām, nospiediet taustiņu SHIFT un pēc tam F10 tabulā, atlasiet RAKURSTABULAS OPCIJAS un pēc tam atlasiet cilni ALTERNATĪVAIS TEKSTS."]

{"sheet":"Informācijas panelis","index":1,"n_rows":12,"n_cols":15,"rows_kept":12,"merged":[[0,1,0,13],[1,2,1,7]]}
["Šajā darblapā izveidojiet informācijas paneli ar ikmēneša un gada kopsummām un iknedēļas ienākumiem un izdevumiem. Noderīgi norādījumi par to, kā lietot šo darblapu, ir šīs kolonnas šūnās. Šīs darbgrāmatas nosaukums ir šūnā pa labi un darblapas virsraksts šūnā O1.","Pusmēneša ģimenes budžets",{"$nulls":12},"INFORMĀCIJAS PANELIS"]
["Lai mainītu mēnesi, atlasiet slīdni šūnā C2, lai mainītu gadu šūnā I2, atlasiet slīdni šūnā J2.",{"$f":"CHOOSE(Mēneša_Numurs,\"JANVĀRIS\",\"FEBRUĀRIS\",\"MARTS\",\"APRĪLIS\",\"MAIJS\",\"JŪNIJS\",\"JŪLIJS\",\"AUGUSTS\",\"SEPTEMBRIS\",\"OKTOBRIS\",\"NOVEMBRIS\",\"DECEMBRIS\")","v":"DECEMBRIS"},12,{"$nulls":5},{"$f":"YEAR(TODAY())","v":2022}]
["Etiķete Ikmēneša kopsumma šūnā pa labi un etiķete Gada kopsumma šūnā I3.","IKMĒNEŠA KOPSUMMAS",{"$nulls":6},"GADA KOPSUMMAS"]
["Joslu diagramma, kurā salīdzina ikmēneša ienākumu kopsummu ar ikmēneša izdevumu kopsummu, atrodas C4 šūnā, un joslu diagramma, kurā tiek salīdzināta gada ienākumu kopsumma ar gada izdevumu kopsummu, ir J4 šūnā. Nākamais norādījums ir šūnā A8.","IENĀKUMI",null,{"$f":"Mēneša_Izdevumu_Kospumma","v":{"v":0,"d":"0 EUR"}},{"$nulls":4},"IENĀKUMI",null,null,{"$f":"Gada_Izdevumu_Kopsumma","v":{"v":10742,"d":"10,742 EUR"}}]
[null,"IZDEVUMI",null,{"$f":"Mēneša_Ienākumu_Kospumma","v":{"v":0,"d":"0 EUR"}},{"$nulls":4},"IZDEVUMI",null,null,{"$f":"Gada_Ienākumu_Kopsumma","v":{"v":13200,"d":"13,200 EUR"}}]
[]
[]
["Informācijas paneļa tabula, kas sākas šūnā pa labi, tiek automātiski atjaunināta.","Kategorija","JANVĀRIS","FEBRUĀRIS","MARTS","APRĪLIS","MAIJS","JŪNIJS","JŪLIJS","AUGUSTS","SEPTEMBRIS","OKTOBRIS","NOVEMBRIS","DECEMBRIS","Sīkdiagramma"]
[null,"Ienākumi 1–15",{"$f":"SUMIFS(Ienākumi[SUMMA],Ienākumi[DATUMS],\"<=\"&DtMiddle,Ienākumi[DATUMS],\">=\"&DtStart)","v":{"v":0,"d":"0.00 EUR"}},{"$f":"SUMIFS(Ienākumi[SUMMA],Ienākumi[DATUMS],\"<=\"&DtMiddle,Ienākumi[DATUMS],\">=\"&DtStart)","v":{"v":0,"d":"0.00 EUR"}},{"$f":"SUMIFS(Ienākumi[SUMMA],Ienākumi[DATUMS],\"<=\"&DtMiddle,Ienākumi[DATUMS],\">=\"&DtStart)","v":{"v":1300,"d":"1,300.00 EUR"}},{"$f":"SUMIFS(Ienākumi[SUMMA],Ienākumi[DATUMS],\"<=\"&DtMiddle,Ienākumi[DATUMS],\">=\"&DtStart)","v":{"v":2600,"d":"2,600.00 EUR"}},{"$f":"SUMIFS(Ienākumi[SUMMA],Ienākumi[DATUMS],\"<=\"&DtMiddle,Ienākumi[DATUMS],\">=\"&DtStart)","v":{"v":2600,"d":"2,600.00 EUR"}},{"$f":"SUMIFS(Ienākumi[SUMMA],Ienākumi[DATUMS],\"<=\"&DtMiddle,Ienākumi[DATUMS],\">=\"&DtStart)","v":{"v":0,"d":"0.00 EUR"}},{"$f":"SUMIFS(Ienākumi[SUMMA],Ienākumi[DATUMS],\"<=\"&DtMiddle,Ienākumi[DATUMS],\">=\"&DtStart)","v":{"v":0,"d":"0.00 EUR"}},{"$f":"SUMIFS(Ienākumi[SUMMA],Ienākumi[DATUMS],\"<=\"&DtMiddle,Ienākumi[DATUMS],\">=\"&DtStart)","v":{"v":0,"d":"0.00 EUR"}},{"$f":"SUMIFS(Ienākumi[SUMMA],Ienākumi[DATUMS],\"<=\"&DtMiddle,Ienākumi[DATUMS],\">=\"&DtStart)","v":{"v":0,"d":"0.00 EUR"}},{"$f":"SUMIFS(Ienākumi[SUMMA],Ienākumi[DATUMS],\"<=\"&DtMiddle,Ienākumi[DATUMS],\">=\"&DtStart)","v":{"v":0,"d":"0.00 EUR"}},{"$f":"SUMIFS(Ienākumi[SUMMA],Ienākumi[DATUMS],\"<=\"&DtMiddle,Ienākumi[DATUMS],\">=\"&DtStart)","v":{"v":0,"d":"0.00 EUR"}},{"$f":"SUMIFS(Ienākumi[SUMMA],Ienākumi[DATUMS],\"<=\"&DtMiddle,Ienākumi[DATUMS],\">=\"&DtStart)","v":{"v":0,"d":"0.00 EUR"}}]
[null,"Ienākumi 16–EOM",{"$f":"SUMIFS(Ienākumi[SUMMA],Ienākumi[DATUMS],\"<=\"&Dtend,Ienākumi[DATUMS],\">=\"&DtMiddle+1)","v":{"v":0,"d":"0.00 EUR"}},{"$f":"SUMIFS(Ienākumi[SUMMA],Ienākumi[DATUMS],\"<=\"&Dtend,Ienākumi[DATUMS],\">=\"&DtMiddle+1)","v":{"v":0,"d":"0.00 EUR"}},{"$f":"SUMIFS(Ienākumi[SUMMA],Ienākumi[DATUMS],\"<=\"&Dtend,Ienākumi[DATUMS],\">=\"&DtMiddle+1)","v":{"v":3100,"d":"3,100.00 EUR"}},{"$f":"SUMIFS(Ienākumi[SUMMA],Ienākumi[DATUMS],\"<=\"&Dtend,Ienākumi[DATUMS],\">=\"&DtMiddle+1)","v":{"v":3100,"d":"3,100.00 EUR"}},{"$f":"SUMIFS(Ienākumi[SUMMA],Ienākumi[DATUMS],\"<=\"&Dtend,Ienākumi[DATUMS],\">=\"&DtMiddle+1)","v":{"v":500,"d":"500.00 EUR"}},{"$f":"SUMIFS(Ienākumi[SUMMA],Ienākumi[DATUMS],\"<=\"&Dtend,Ienākumi[DATUMS],\">=\"&DtMiddle+1)","v":{"v":0,"d":"0.00 EUR"}},{"$f":"SUMIFS(Ienākumi[SUMMA],Ienākumi[DATUMS],\"<=\"&Dtend,Ienākumi[DATUMS],\">=\"&DtMiddle+1)","v":{"v":0,"d":"0.00 EUR"}},{"$f":"SUMIFS(Ienākumi[SUMMA],Ienākumi[DATUMS],\"<=\"&Dtend,Ienākumi[DATUMS],\">=\"&DtMiddle+1)","v":{"v":0,"d":"0.00 EUR"}},{"$f":"SUMIFS(Ienākumi[SUMMA],Ienākumi[DATUMS],\"<=\"&Dtend,Ienākumi[DATUMS],\">=\"&DtMiddle+1)","v":{"v":0,"d":"0.00 EUR"}},{"$f":"SUMIFS(Ienākumi[SUMMA],Ienākumi[DATUMS],\"<=\"&Dtend,Ienākumi[DATUMS],\">=\"&DtMiddle+1)","v":{"v":0,"d":"0.00 EUR"}},{"$f":"SUMIFS(Ienākumi[SUMMA],Ienākumi[DATUMS],\"<=\"&Dtend,Ienākumi[DATUMS],\">=\"&DtMiddle+1)","v":{"v":0,"d":"0.00 EUR"}},{"$f":"SUMIFS(Ienākumi[SUMMA],Ienākumi[DATUMS],\"<=\"&Dtend,Ienākumi[DATUMS],\">=\"&DtMiddle+1)","v":{"v":0,"d":"0.00 EUR"}}]
[null,"Izdevumi 1–15",{"$f":"SUMIFS(Tēriņi[SUMMA],Tēriņi[DATUMS],\"<=\"&DtMiddle+1,Tēriņi[DATUMS],\">=\"&DtStart)","v":{"v":0,"d":"0.00 EUR"}},{"$f":"SUMIFS(Tēriņi[SUMMA],Tēriņi[DATUMS],\"<=\"&DtMiddle+1,Tēriņi[DATUMS],\">=\"&DtStart)","v":{"v":0,"d":"0.00 EUR"}},{"$f":"SUMIFS(Tēriņi[SUMMA],Tēriņi[DATUMS],\"<=\"&DtMiddle+1,Tēriņi[DATUMS],\">=\"&DtStart)","v":{"v":1225,"d":"1,225.00 EUR"}},{"$f":"SUMIFS(Tēriņi[SUMMA],Tēriņi[DATUMS],\"<=\"&DtMiddle+1,Tēriņi[DATUMS],\">=\"&DtStart)","v":{"v":5150,"d":"5,150.00 EUR"}},{"$f":"SUMIFS(Tēriņi[SUMMA],Tēriņi[DATUMS],\"<=\"&DtMiddle+1,Tēriņi[DATUMS],\">=\"&DtStart)","v":{"v":2792,"d":"2,792.00 EUR"}},{"$f":"SUMIFS(Tēriņi[SUMMA],Tēriņi[DATUMS],\"<=\"&DtMiddle+1,Tēriņi[DATUMS],\">=\"&DtStart)","v":{"v":0,"d":"0.00 EUR"}},{"$f":"SUMIFS(Tēriņi[SUMMA],Tēriņi[DATUMS],\"<=\"&DtMiddle+1,Tēriņi[DATUMS],\">=\"&DtStart)","v":{"v":0,"d":"0.00 EUR"}},{"$f":"SUMIFS(Tēriņi[SUMMA],Tēriņi[DATUMS],\"<=\"&DtMiddle+1,Tēriņi[DATUMS],\">=\"&DtStart)","v":{"v":0,"d":"0.00 EUR"}},{"$f":"SUMIFS(Tēriņi[SUMMA],Tēriņi[DATUMS],\"<=\"&DtMiddle+1,Tēriņi[DATUMS],\">=\"&DtStart)","v":{"v":0,"d":"0.00 EUR"}},{"$f":"SUMIFS(Tēriņi[SUMMA],Tēriņi[DATUMS],\"<=\"&DtMiddle+1,Tēriņi[DATUMS],\">=\"&DtStart)","v":{"v":0,"d":"0.00 EUR"}},{"$f":"SUMIFS(Tēriņi[SUMMA],Tēriņi[DATUMS],\"<=\"&DtMiddle+1,Tēriņi[DATUMS],\">=\"&DtStart)","v":{"v":0,"d":"0.00 EUR"}},{"$f":"SUMIFS(Tēriņi[SUMMA],Tēriņi[DATUMS],\"<=\"&DtMiddle+1,Tēriņi[DATUMS],\">=\"&DtStart)","v":{"v":0,"d":"0.00 EUR"}}]
[null,"Izdevumi 16–EOM",{"$f":"SUMIFS(Tēriņi[SUMMA],Tēriņi[DATUMS],\"<=\"&Dtend,Tēriņi[DATUMS],\">=\"&DtMiddle+1)","v":{"v":0,"d":"0.00 EUR"}},{"$f":"SUMIFS(Tēriņi[SUMMA],Tēriņi[DATUMS],\"<=\"&Dtend,Tēriņi[DATUMS],\">=\"&DtMiddle+1)","v":{"v":0,"d":"0.00 EUR"}},{"$f":"SUMIFS(Tēriņi[SUMMA],Tēriņi[DATUMS],\"<=\"&Dtend,Tēriņi[DATUMS],\">=\"&DtMiddle+1)","v":{"v":200,"d":"200.00 EUR"}},{"$f":"SUMIFS(Tēriņi[SUMMA],Tēriņi[DATUMS],\"<=\"&Dtend,Tēriņi[DATUMS],\">=\"&DtMiddle+1)","v":{"v":875,"d":"875.00 EUR"}},{"$f":"SUMIFS(Tēriņi[SUMMA],Tēriņi[DATUMS],\"<=\"&Dtend,Tēriņi[DATUMS],\">=\"&DtMiddle+1)","v":{"v":500,"d":"500.00 EUR"}},{"$f":"SUMIFS(Tēriņi[SUMMA],Tēriņi[DATUMS],\"<=\"&Dtend,Tēriņi[DATUMS],\">=\"&DtMiddle+1)","v":{"v":0,"d":"0.00 EUR"}},{"$f":"SUMIFS(Tēriņi[SUMMA],Tēriņi[DATUMS],\"<=\"&Dtend,Tēriņi[DATUMS],\">=\"&DtMiddle+1)","v":{"v":0,"d":"0.00 EUR"}},{"$f":"SUMIFS(Tēriņi[SUMMA],Tēriņi[DATUMS],\"<=\"&Dtend,Tēriņi[DATUMS],\">=\"&DtMiddle+1)","v":{"v":0,"d":"0.00 EUR"}},{"$f":"SUMIFS(Tēriņi[SUMMA],Tēriņi[DATUMS],\"<=\"&Dtend,Tēriņi[DATUMS],\">=\"&DtMiddle+1)","v":{"v":0,"d":"0.00 EUR"}},{"$f":"SUMIFS(Tēriņi[SUMMA],Tēriņi[DATUMS],\"<=\"&Dtend,Tēriņi[DATUMS],\">=\"&DtMiddle+1)","v":{"v":0,"d":"0.00 EUR"}},{"$f":"SUMIFS(Tēriņi[SUMMA],Tēriņi[DATUMS],\"<=\"&Dtend,Tēriņi[DATUMS],\">=\"&DtMiddle+1)","v":{"v":0,"d":"0.00 EUR"}},{"$f":"SUMIFS(Tēriņi[SUMMA],Tēriņi[DATUMS],\"<=\"&Dtend,Tēriņi[DATUMS],\">=\"&DtMiddle+1)","v":{"v":0,"d":"0.00 EUR"}}]

{"sheet":"Izdevumi un ienākumi","index":2,"n_rows":36,"n_cols":9,"rows_kept":36,"merged":[[0,1,0,6],[0,7,0,8]]}
["Šajā darblapā izveidojiet ienākumu un izdevumu sarakstu. Noderīgi norādījumi par to, kā lietot šo darblapu, ir šīs kolonnas šūnās. Darbgrāmatas nosaukums ir šūnā pa labi un darblapas virsraksts šūnā H1.",{"$f":"Daļējs_Mēneša_Ģimenes_Budžeta_Nosaukums","v":"Pusmēneša ģimenes budžets"},{"$nulls":5},"IENĀKUMI UN IZDEVUMI"]
["Etiķete Ienākumi ir šūnā pa labi, un šūnā F2 ir etiķete Izdevumi.","IENĀKUMI",{"$nulls":3},"IZDEVUMI"]
["Ievadiet informāciju tabulā Ienākumi, sākot no šūnas pa labi un tabulā Izdevumi, sākot ar šūnu F3.","DATUMS","APRAKSTS","SUMMA",null,"DATUMS","KATEGORIJA","APRAKSTS","SUMMA"]
[null,{"$f":"TODAY()","v":"2022-05-18"},"Bonuss",{"v":500,"d":"500.00 EUR"},null,{"$f":"TODAY()","v":"2022-05-18"},"Medikamenti","Apdrošināšana",{"v":500,"d":"500.00 EUR"}]
[null,{"$f":"TODAY()-14","v":"2022-05-04"},"Dāvida alga",{"v":1300,"d":"1,300.00 EUR"},null,{"$f":"TODAY()-7","v":"2022-05-11"},"Mājsaimniecība","Hipotekārais kredīts",{"v":1000,"d":"1,000.00 EUR"}]
[null,{"$f":"TODAY()-14","v":"2022-05-04"},"Patrīcijas alga",{"v":1300,"d":"1,300.00 EUR"},null,"2022-05-11","Mājsaimniecība","Elektrība",{"v":100,"d":"100.00 EUR"}]
[null,{"$f":"TODAY()-28","v":"2022-04-20"},"Dāvida alga",{"v":1500,"d":"1,500.00 EUR"},null,"2022-05-11","Mājsaimniecība","Ūdens/kanalizācija",{"v":50,"d":"50.00 EUR"}]
[null,{"$f":"TODAY()-28","v":"2022-04-20"},"Patrīcijas alga",{"v":1600,"d":"1,600.00 EUR"},null,"2022-05-11","Mājsaimniecība","Atkritumi",{"v":25,"d":"25.00 EUR"}]
[null,{"$f":"TODAY()-42","v":"2022-04-06"},"Dāvida alga",{"v":1300,"d":"1,300.00 EUR"},null,"2022-05-11","Mājsaimniecība","Mobilais tālrunis",{"v":100,"d":"100.00 EUR"}]
[null,{"$f":"TODAY()-42","v":"2022-04-06"},"Patrīcijas alga",{"v":1300,"d":"1,300.00 EUR"},null,"2022-05-11","Mājsaimniecība","Mobilais tālrunis",{"v":30,"d":"30.00 EUR"}]
[null,{"$f":"TODAY()-56","v":"2022-03-23"},"Dāvida alga",{"v":1500,"d":"1,500.00 EUR"},null,"2022-05-11","Mājsaimniecība","Hipotekārais kredīts",{"v":50,"d":"50.00 EUR"}]
[null,{"$f":"TODAY()-56","v":"2022-03-23"},"Patrīcijas alga",{"v":1600,"d":"1,600.00 EUR"},null,"2022-05-11","Mājsaimniecība","Mobilais tālrunis",{"v":50,"d":"50.00 EUR"}]
[null,{"$f":"TODAY()-70","v":"2022-03-09"},"Dāvida alga",{"v":1300,"d":"1,300.00 EUR"},null,{"$f":"TODAY()-7","v":"2022-05-11"},"Mājsaimniecība","Mobilais tālrunis",{"v":25,"d":"25.00 EUR"}]
[{"$nulls":5},{"$f":"TODAY()-8","v":"2022-05-10"},"Mājsaimniecība","Elektrība",{"v":100,"d":"100.00 EUR"}]
[{"$nulls":5},{"$f":"TODAY()-9","v":"2022-05-09"},"Izklaide","Filmas",{"v":37,"d":"37.00 EUR"}]
[{"$nulls":5},{"$f":"TODAY()-10","v":"2022-05-08"},"Pārtika","Pārtikas preces",{"v":350,"d":"350.00 EUR"}]
[{"$nulls":5},{"$f":"TODAY()-11","v":"2022-05-07"},"Pārtika","Ēšana ārpus mājas",{"v":75,"d":"75.00 EUR"}]
[{"$nulls":5},{"$f":"TODAY()-12","v":"2022-05-06"},"Bērni","Pusdienu nauda",{"v":150,"d":"150.00 EUR"}]
[{"$nulls":5},{"$f":"TODAY()-13","v":"2022-05-05"},"Investīciju konti","Ietaupījumi",{"v":250,"d":"250.00 EUR"}]
[{"$nulls":5},{"$f":"TODAY()-14","v":"2022-05-04"},"Investīciju konti","Ieguldījumu konts",{"v":250,"d":"250.00 EUR"}]
[{"$nulls":5},{"$f":"TODAY()-15","v":"2022-05-03"},"Personisks","Veselības/fitnesa klubs",{"v":100,"d":"100.00 EUR"}]
[{"$nulls":5},{"$f":"TODAY()-16","v":"2022-05-02"},"Mājdzīvnieki","Pārtika",{"v":50,"d":"50.00 EUR"}]
[{"$nulls":5},{"$f":"TODAY()-20","v":"2022-04-28"},"Mājdzīvnieki","Frizieris",{"v":50,"d":"50.00 EUR"}]
[{"$nulls":5},{"$f":"TODAY()-20","v":"2022-04-28"},"Mājdzīvnieki","Citi",{"v":50,"d":"50.00 EUR"}]
[{"$nulls":5},{"$f":"TODAY()-25","v":"2022-04-23"},"Transports","1. automašīnas maksājums ",{"v":300,"d":"300.00 EUR"}]
[{"$nulls":5},{"$f":"TODAY()-25","v":"2022-04-23"},"Transports","2. automašīnas maksājums ",{"v":350,"d":"350.00 EUR"}]
[{"$nulls":5},{"$f":"TODAY()-25","v":"2022-04-23"},"Transports","Automašīnas apdrošināšana",{"v":50,"d":"50.00 EUR"}]
[{"$nulls":5},{"$f":"TODAY()-30","v":"2022-04-18"},"Transports","Degviela",{"v":50,"d":"50.00 EUR"}]
[{"$nulls":5},{"$f":"TODAY()-31","v":"2022-04-17"},"Transports","Degviela",{"v":25,"d":"25.00 EUR"}]
[{"$nulls":5},{"$f":"TODAY()-42","v":"2022-04-06"},"Transports","2. automašīnas maksājums ",{"v":150,"d":"150.00 EUR"}]
[{"$nulls":5},{"$f":"TODAY()-45","v":"2022-04-03"},"Mājsaimniecība","Hipotekārais kredīts",{"v":5000,"d":"5,000.00 EUR"}]
[{"$nulls":5},{"$f":"TODAY()-50","v":"2022-03-29"},"Mājsaimniecība","Elektrība",{"v":200,"d":"200.00 EUR"}]
[{"$nulls":5},{"$f":"TODAY()-65","v":"2022-03-14"},"Mājsaimniecība","Mobilais tālrunis",{"v":100,"d":"100.00 EUR"}]
[{"$nulls":5},{"$f":"TODAY()-70","v":"2022-03-09"},"Mājsaimniecība","Atkritumi",{"v":50,"d":"50.00 EUR"}]
[{"$nulls":5},{"$f":"TODAY()-75","v":"2022-03-04"},"Mājsaimniecība","Hipotekārais kredīts",{"v":1000,"d":"1,000.00 EUR"}]
[{"$nulls":5},{"$f":"TODAY()-78","v":"2022-03-01"},"Izklaide","Filmas",{"v":75,"d":"75.00 EUR"}]

{"sheet":"Budžeta Pārskats","index":3,"n_rows":26,"n_cols":6,"rows_kept":26,"merged":[[0,1,0,4],[1,1,1,3],[4,3,4,5]]}
["Šajā darblapā izveidojiet budžeta pārskatu. Noderīgi norādījumi par to, kā lietot šo darblapu, ir šīs kolonnas šūnās. Darbgrāmatas nosaukums ir šūnā pa labi un darblapas virsraksts šūnā F1.",{"$f":"Daļējs_Mēneša_Ģimenes_Budžeta_Nosaukums","v":"Pusmēneša ģimenes budžets"},{"$nulls":3},"BUDŽETA PĀRSKATS"]
["Atlasiet Gadi, Ceturkšņi, Mēneši vai Dienas un izmantojiet slīdni šūnā pa labi, lai iegūtu izvēlētā perioda izdevumu rakurstabulu. Kategorijas datu griezums rakurstabulu datu filtrēšanai atrodas šūnā E2 un apraksta datu griezums šūnā F2.","Filtrēšanas laika grafiks ir šajā šūnā.",null,null,"Datu griezums, lai filtrētu rakurstabulas datus, pamatojoties uz kategoriju, atrodas šajā šūnā.","Datu griezums rakurstabulu datu filtrēšanai, pamatojoties uz aprakstu, atrodas šajā šūnā."]
["Šūnā pa labi ir padoms.","Izdevumu rakurstabulā nospiediet taustiņu kombināciju Shift+F10 un pēc tam atlasiet Atsvaidzināt, lai atjauninātu datus šajā lapā, vai atlasiet Atsvaidzināt cilnē Analīze."]
["Informācija par darbības apzīmējumiem ir šūnā pa labi.","IZDEVUMI"]
["Rakurstabula, kurā redzami izdevumi, sākas šūnā pa labi. Etiķete Kategorijas kopsumma ir šūnā D4.","Rindu etiķetes","Summa no SUMMA","KATEGORIJU KOPSUMMAS"]
["Sektoru diagramma, kurā salīdzināta katras kategorijas kopsumma, ir šūnā D6.","1. automašīnas maksājums ",{"v":300,"d":"300.00 EUR"}]
[null,"2. automašīnas maksājums ",{"v":500,"d":"500.00 EUR"}]
[null,"Apdrošināšana",{"v":500,"d":"500.00 EUR"}]
[null,"Atkritumi",{"v":75,"d":"75.00 EUR"}]
[null,"Automašīnas apdrošināšana",{"v":50,"d":"50.00 EUR"}]
[null,"Citi",{"v":50,"d":"50.00 EUR"}]
[null,"Degviela",{"v":75,"d":"75.00 EUR"}]
[null,"Elektrība",{"v":400,"d":"400.00 EUR"}]
[null,"Ēšana ārpus mājas",{"v":75,"d":"75.00 EUR"}]
[null,"Filmas",{"v":112,"d":"112.00 EUR"}]
[null,"Frizieris",{"v":50,"d":"50.00 EUR"}]
[null,"Hipotekārais kredīts",{"v":7050,"d":"7,050.00 EUR"}]
[null,"Ieguldījumu konts",{"v":250,"d":"250.00 EUR"}]
[null,"Ietaupījumi",{"v":250,"d":"250.00 EUR"}]
[null,"Mobilais tālrunis",{"v":305,"d":"305.00 EUR"}]
[null,"Pārtika",{"v":50,"d":"50.00 EUR"}]
[null,"Pārtikas preces",{"v":350,"d":"350.00 EUR"}]
[null,"Pusdienu nauda",{"v":150,"d":"150.00 EUR"}]
[null,"Ūdens/kanalizācija",{"v":50,"d":"50.00 EUR"}]
[null,"Veselības/fitnesa klubs",{"v":100,"d":"100.00 EUR"}]
[null,"Gala summa",{"v":10742,"d":"10,742.00 EUR"}]

{"sheet":"Datu saraksti","index":4,"n_rows":8,"n_cols":13,"rows_kept":8,"merged":[[0,1,0,11]]}
["Ievadiet kategorijas datus šajā darblapā, lai aizpildītu nolaižamos sarakstus tabulā Izdevumi darblapā Izdevumi un ienākumi. Mainiet kategoriju nosaukumus vai aprakstus zem katras kategorijas, lai atjauninātu sarakstus. Noderīgi norādījumi par to, kā lietot šo darblapu, ir šīs kolonnas šūnās. Darbgrāmatas nosaukums ir šūnā pa labi un darblapas virsraksts šūnā M1.",{"$f":"Daļējs_Mēneša_Ģimenes_Budžeta_Nosaukums","v":"Pusmēneša ģimenes budžets"},{"$nulls":10},"DATU SARAKSTI"]
["Šūnā pa labi ir padoms.","IESTATĪŠANA         Izmantojot tālāk esošos kategorijas datus, aizpilda nolaižamos sarakstus tabulā Izdevumi lapā Izdevumi un Ienākumi. Mainiet kategoriju nosaukumus vai aprakstus zem katras kategorijas, lai atjauninātu sarakstus."]
["Ievadiet vai modificējiet kategoriju nosaukumus vai aprakstus zem katras kategorijas tabulā, sākot ar šūnu pa labi.","Mājsaimniecība","Izklaide","Pārtika","Dāvanas/ziedojumi","Bērni","Investīciju konti","Medikamenti","Citi","Personisks","Mājdzīvnieki","Nodokļi/juristu izmaksas","Transports"]
[null,"Hipotekārais kredīts","Filmas","Pārtikas preces","Labdarība 1","Apģērbs","VID","Ārsti/klīnika","Citi","Apģērbs","Pārtika","Federālie","1. automašīnas maksājums "]
[null,"Elektrība","Video/filmas","Ēšana ārpus mājas","Labdarība 2","Rotaļlietas/spēles","Ietaupījumi","Apdrošināšana","Organizācijas izpildes termiņš","Mati/nagi","Materiāli","Valsts","2. automašīnas maksājums "]
[null,"Ūdens/kanalizācija","Mūzika",null,"Labdarība 3","Pusdienu nauda","Darījumi",null,null,"Ķīmiskā tīrītava","Medikamenti","Vietējie","Automašīnas apdrošināšana"]
[null,"Atkritumi","Koncerti/teātris",null,"Dāvana","Maksājumi/nodevas","Pensionēšanās",null,null,"Veselības/fitnesa klubs","Frizieris","Citi","Licencēšana/reģistrācija"]
[null,"Mobilais tālrunis","Sporta pasākumi",null,null,"Skolas piederumi","Ieguldījumu konts",null,null,"Iepirkšanās","Citi","Advokāts","Degviela"]

{"sheet":"Kategorija PivotTable","index":5,"n_rows":13,"n_cols":13,"rows_kept":13,"hidden":true}
[null,"Pusmēneša ģimenes budžets",{"$nulls":10},"KATEGORIJU RAKURSS"]
[null,"Šī rakurstabula ir datu avots kategoriju kopsummas rakurstabulai budžeta pārskatā. "]
[null,"Rindu etiķetes","Sum of SUMMA"]
[null,"Bērni",{"v":150,"d":"150 EUR"}]
[null,"Investīciju konti",{"v":500,"d":"500 EUR"}]
[null,"Izklaide",{"v":112,"d":"112 EUR"}]
[null,"Mājdzīvnieki",{"v":150,"d":"150 EUR"}]
[null,"Mājsaimniecība",{"v":7880,"d":"7,880 EUR"}]
[null,"Medikamenti",{"v":500,"d":"500 EUR"}]
[null,"Pārtika",{"v":425,"d":"425 EUR"}]
[null,"Personisks",{"v":100,"d":"100 EUR"}]
[null,"Transports",{"v":925,"d":"925 EUR"}]
[null,"Gala summa",{"v":10742,"d":"10,742 EUR"}]